[Event "*** Titled Tuesday 3|2 Blitz"]
[Site "Chess.com"]
[Date "2017.05.02"]
[Round "2"]
[White "DiogenesSinopeus"]
[Black "GM_Huschenbeth"]
[Result "1-0"]
[WhiteElo "2220"]
[BlackElo "2348"]
[TimeControl "180+2"]
[EndTime "13:21:32 PDT"]
[Termination "DiogenesSinopeus won on time"]

1. d4 {[%clk 0:03:02]} 1... d5 {[%clk 0:03:00]} 2. c4 {[%clk 0:03:03.2]} 2...
dxc4 {[%clk 0:03:01.9]} 3. e4 {[%clk 0:03:03.9]} 3... b5 {[%clk 0:03:02.2]} 4.
Nc3 {[%clk 0:03:02.2]} 4... a6 {[%clk 0:02:55.2]} 5. a4 {[%clk 0:02:59.7]} 5...
c6 {[%clk 0:02:55]} 6. Nf3 {[%clk 0:02:50.9]} 6... Bb7 {[%clk 0:02:52.4]} 7. Be2
{[%clk 0:02:40.8]} 7... e6 {[%clk 0:02:49.9]} 8. O-O {[%clk 0:02:41.3]} 8... Nf6
{[%clk 0:02:50.3]} 9. Bg5 {[%clk 0:02:40.6]} 9... h6 {[%clk 0:02:37.1]} 10. Bh4
{[%clk 0:02:39.8]} 10... g5 {[%clk 0:02:36.3]} 11. Bg3 {[%clk 0:02:32.7]} 11...
Nbd7 {[%clk 0:02:20.6]} 12. h4 {[%clk 0:02:31]} 12... b4 {[%clk 0:02:17.9]} 13.
e5 {[%clk 0:02:20.4]} 13... bxc3 {[%clk 0:02:03.2]} 14. exf6 {[%clk 0:02:20.9]}
14... cxb2 {[%clk 0:02:04]} 15. Rb1 {[%clk 0:02:21.3]} 15... g4 {[%clk
0:00:59.3]} 16. Ne5 {[%clk 0:01:59.5]} 16... Nxe5 {[%clk 0:01:00.1]} 17. Bxe5
{[%clk 0:01:57.3]} 17... Qd5 {[%clk 0:00:44.9]} 18. Bxg4 {[%clk 0:01:46.9]}
18... c3 {[%clk 0:00:44]} 19. Bf3 {[%clk 0:01:44.4]} 19... Qc4 {[%clk
0:00:43.7]} 20. Qc2 {[%clk 0:01:37.6]} 20... Ba3 {[%clk 0:00:41.3]} 21. Be2
{[%clk 0:01:26.4]} 21... Qb4 {[%clk 0:00:36.9]} 22. d5 {[%clk 0:01:09.8]} 22...
cxd5 {[%clk 0:00:37.1]} 23. Qxc3 {[%clk 0:01:07.9]} 23... Qxa4 {[%clk
0:00:25.5]} 24. Qc7 {[%clk 0:00:57.6]} 24... Qd7 {[%clk 0:00:23.8]} 25. Qa5
{[%clk 0:00:43.6]} 25... Bd6 {[%clk 0:00:18.2]} 26. Bxd6 {[%clk 0:00:43.7]}
26... Qxd6 {[%clk 0:00:20.1]} 27. Rxb2 {[%clk 0:00:45.4]} 27... Bc6 {[%clk
0:00:16.6]} 28. Rc1 {[%clk 0:00:40.7]} 28... Bd7 {[%clk 0:00:16.3]} 29. Rb6
{[%clk 0:00:38]} 29... Qe5 {[%clk 0:00:17]} 30. Qb4 {[%clk 0:00:38.2]} 30...
Qxf6 {[%clk 0:00:12.8]} 31. Rb7 {[%clk 0:00:37.5]} 31... Rd8 {[%clk 0:00:11.8]}
32. Rcc7 {[%clk 0:00:36.6]} 32... Qe7 {[%clk 0:00:12.2]} 33. Qd2 {[%clk
0:00:28.6]} 33... O-O {[%clk 0:00:10.4]} 34. Qxh6 {[%clk 0:00:27.4]} 34... d4
{[%clk 0:00:07.8]} 35. Bxa6 {[%clk 0:00:26.3]} 35... e5 {[%clk 0:00:06.4]} 36.
Bd3 {[%clk 0:00:26.2]} 36... f5 {[%clk 0:00:06.6]} 37. Qg6+ {[%clk 0:00:24.5]}
37... Kh8 {[%clk 0:00:06.5]} 38. Bb5 {[%clk 0:00:22.2]} 38... d3 {[%clk
0:00:03.5]} 39. Rxd7 {[%clk 0:00:20.8]} 39... Rxd7 {[%clk 0:00:04.5]} 40. Rxd7
{[%clk 0:00:21.5]} 40... d2 {[%clk 0:00:03.3]} 41. Qh6+ {[%clk 0:00:18.4]} 1-0

[Event "*** Titled Tuesday 3|2 Blitz"]
[Site "Chess.com"]
[Date "2017.05.02"]
[Round "2"]
[White "GMAkobianSTL"]
[Black "GrigorGrigorov"]
[Result "1-0"]
[WhiteElo "2601"]
[BlackElo "2508"]
[TimeControl "180+2"]
[EndTime "13:21:51 PDT"]
[Termination "GMAkobianSTL won by resignation"]

1. d4 {[%clk 0:03:02]} 1... Nf6 {[%clk 0:03:00.4]} 2. c4 {[%clk 0:03:01.3]} 2...
e6 {[%clk 0:03:01.1]} 3. Nf3 {[%clk 0:03:01.5]} 3... b6 {[%clk 0:03:01.7]} 4. g3
{[%clk 0:03:02.1]} 4... Bb7 {[%clk 0:03:02.8]} 5. Bg2 {[%clk 0:03:02.7]} 5...
Be7 {[%clk 0:03:03.1]} 6. O-O {[%clk 0:03:03.7]} 6... O-O {[%clk 0:03:03.9]} 7.
Nc3 {[%clk 0:03:04.2]} 7... Ne4 {[%clk 0:03:04.6]} 8. Bd2 {[%clk 0:02:57.9]}
8... Bf6 {[%clk 0:03:03.5]} 9. Qc2 {[%clk 0:02:56.4]} 9... Nxd2 {[%clk
0:03:02.1]} 10. Qxd2 {[%clk 0:02:53.5]} 10... d6 {[%clk 0:03:01.2]} 11. e4
{[%clk 0:02:53.1]} 11... Nd7 {[%clk 0:02:59.9]} 12. Rad1 {[%clk 0:02:44.3]}
12... g6 {[%clk 0:02:58.3]} 13. Rfe1 {[%clk 0:02:44.8]} 13... Bg7 {[%clk
0:02:59.3]} 14. h4 {[%clk 0:02:37.3]} 14... Qe7 {[%clk 0:02:57.7]} 15. h5 {[%clk
0:02:30.8]} 15... a6 {[%clk 0:02:54.3]} 16. h6 {[%clk 0:02:30.1]} 16... Bh8
{[%clk 0:02:54]} 17. b4 {[%clk 0:02:30.2]} 17... e5 {[%clk 0:02:33.1]} 18. Nd5
{[%clk 0:02:27.6]} 18... Qd8 {[%clk 0:02:32.8]} 19. dxe5 {[%clk 0:02:14.4]}
19... Nxe5 {[%clk 0:02:29.1]} 20. Nxe5 {[%clk 0:02:14.8]} 20... Bxe5 {[%clk
0:02:27.3]} 21. f4 {[%clk 0:02:12.6]} 21... Bh8 {[%clk 0:02:26.9]} 22. e5 {[%clk
0:02:13.6]} 22... dxe5 {[%clk 0:02:19.6]} 23. fxe5 {[%clk 0:02:14.3]} 23... c6
{[%clk 0:02:02.2]} 24. Nc3 {[%clk 0:01:30.6]} 24... Qe7 {[%clk 0:02:00.9]} 25.
Na4 {[%clk 0:00:51.5]} 25... Bxe5 {[%clk 0:01:55.5]} 26. Nxb6 {[%clk 0:00:41]}
26... Rad8 {[%clk 0:01:50.9]} 27. Nd7 {[%clk 0:00:38.2]} 27... f6 {[%clk
0:01:14]} 28. b5 {[%clk 0:00:36.5]} 28... axb5 {[%clk 0:01:05.7]} 29. cxb5
{[%clk 0:00:37.2]} 29... Qa3 {[%clk 0:00:26.2]} 30. bxc6 {[%clk 0:00:31.4]}
30... Qxg3 {[%clk 0:00:14.8]} 31. Qd5+ {[%clk 0:00:31.2]} 31... Kh8 {[%clk
0:00:14.2]} 32. Rxe5 {[%clk 0:00:30.5]} 32... fxe5 {[%clk 0:00:15]} 33. cxb7
{[%clk 0:00:14.9]} 33... Qf2+ {[%clk 0:00:14.4]} 34. Kh2 {[%clk 0:00:15.4]}
34... Qh4+ {[%clk 0:00:14.8]} 35. Bh3 {[%clk 0:00:06.9]} 35... Rf2+ {[%clk
0:00:14.8]} 36. Kg1 {[%clk 0:00:07.6]} 36... Qg3+ {[%clk 0:00:09.6]} 37. Bg2
{[%clk 0:00:08.5]} 37... Rf5 {[%clk 0:00:05.6]} 38. Qc5 {[%clk 0:00:04.7]} 38...
e4 {[%clk 0:00:02.8]} 39. Qd4+ {[%clk 0:00:05.3]} 39... Re5 {[%clk 0:00:04.1]}
40. Qxe5+ {[%clk 0:00:05.1]} 40... Qxe5 {[%clk 0:00:04.7]} 41. Nxe5 {[%clk
0:00:06.7]} 41... Rxd1+ {[%clk 0:00:06.3]} 42. Kh2 {[%clk 0:00:08.1]} 42... Rb1
{[%clk 0:00:07.6]} 43. Bxe4 {[%clk 0:00:09.2]} 43... Rb2+ {[%clk 0:00:09.2]} 44.
Kg3 {[%clk 0:00:09.7]} 44... Kg8 {[%clk 0:00:10.8]} 45. Nd7 {[%clk 0:00:10.5]}
45... Kf7 {[%clk 0:00:11.8]} 46. b8=Q {[%clk 0:00:11.6]} 46... Rxb8 {[%clk
0:00:12.6]} 47. Nxb8 {[%clk 0:00:12.8]} 1-0

[Event "*** Titled Tuesday 3|2 Blitz"]
[Site "Chess.com"]
[Date "2017.05.02"]
[Round "2"]
[White "162a54f5d"]
[Black "DryCounty"]
[Result "1-0"]
[WhiteElo "2489"]
[BlackElo "2477"]
[TimeControl "180+2"]
[EndTime "13:21:58 PDT"]
[Termination "162a54f5d won on time"]

1. d4 {[%clk 0:03:02]} 1... Nf6 {[%clk 0:02:57.7]} 2. Nf3 {[%clk 0:03:02.7]}
2... g6 {[%clk 0:02:57.4]} 3. g3 {[%clk 0:03:03.6]} 3... Bg7 {[%clk 0:02:53.8]}
4. Bg2 {[%clk 0:03:05.1]} 4... O-O {[%clk 0:02:54]} 5. O-O {[%clk 0:03:06.2]}
5... d6 {[%clk 0:02:54.3]} 6. b3 {[%clk 0:03:07.6]} 6... a5 {[%clk 0:02:53]} 7.
a4 {[%clk 0:03:08.3]} 7... Nc6 {[%clk 0:02:51.4]} 8. Bb2 {[%clk 0:03:09.6]} 8...
Bf5 {[%clk 0:02:47.9]} 9. Re1 {[%clk 0:03:04.3]} 9... d5 {[%clk 0:02:42.6]} 10.
Nh4 {[%clk 0:02:56.1]} 10... Be6 {[%clk 0:02:20.7]} 11. Nd2 {[%clk 0:02:55.2]}
11... Qd7 {[%clk 0:02:19.5]} 12. e3 {[%clk 0:02:41.1]} 12... Bh3 {[%clk
0:02:19.3]} 13. Bh1 {[%clk 0:02:40]} 13... Rfe8 {[%clk 0:02:18]} 14. Nhf3 {[%clk
0:02:31]} 14... Bg4 {[%clk 0:02:14.9]} 15. c4 {[%clk 0:02:29.4]} 15... Nb4
{[%clk 0:02:10.6]} 16. Nb1 {[%clk 0:02:13.1]} 16... Ne4 {[%clk 0:02:06.5]} 17.
Nc3 {[%clk 0:02:07.9]} 17... c6 {[%clk 0:02:03.5]} 18. Rc1 {[%clk 0:01:56.2]}
18... Nxc3 {[%clk 0:01:35.4]} 19. Bxc3 {[%clk 0:01:55.2]} 19... Na2 {[%clk
0:01:35.1]} 20. Rc2 {[%clk 0:01:56.5]} 20... Nxc3 {[%clk 0:01:35.9]} 21. Rxc3
{[%clk 0:01:58.4]} 21... e6 {[%clk 0:01:28.8]} 22. Rc1 {[%clk 0:01:47.4]} 22...
Bf8 {[%clk 0:01:27.7]} 23. Bg2 {[%clk 0:01:44.7]} 23... Bb4 {[%clk 0:01:26.8]}
24. Rf1 {[%clk 0:01:43.5]} 24... Qe7 {[%clk 0:01:25.1]} 25. h3 {[%clk
0:01:43.9]} 25... Bxf3 {[%clk 0:01:24.6]} 26. Bxf3 {[%clk 0:01:40.8]} 26... dxc4
{[%clk 0:01:23.9]} 27. Rxc4 {[%clk 0:01:39.5]} 27... Rad8 {[%clk 0:01:24.2]} 28.
Qe2 {[%clk 0:01:37.9]} 28... e5 {[%clk 0:01:23.6]} 29. dxe5 {[%clk 0:01:39]}
29... Rd2 {[%clk 0:01:20.5]} 30. Qe1 {[%clk 0:01:36.6]} 30... Rb2 {[%clk
0:01:17.3]} 31. Qd1 {[%clk 0:01:33.2]} 31... Qxe5 {[%clk 0:01:08.9]} 32. Re4
{[%clk 0:01:31.3]} 32... Qb8 {[%clk 0:01:09.6]} 33. Qd3 {[%clk 0:01:08.8]} 33...
Rd8 {[%clk 0:00:55.6]} 34. Qc4 {[%clk 0:01:07.3]} 34... Rdd2 {[%clk 0:00:52.6]}
35. Rf4 {[%clk 0:01:08.4]} 35... Qc7 {[%clk 0:00:47.1]} 36. Be4 {[%clk
0:01:03.3]} 36... Bd6 {[%clk 0:00:44.2]} 37. Rf3 {[%clk 0:01:03.9]} 37... Kg7
{[%clk 0:00:39.7]} 38. h4 {[%clk 0:01:04.7]} 38... f5 {[%clk 0:00:37.9]} 39. Qe6
{[%clk 0:00:42]} 39... Qe7 {[%clk 0:00:25.8]} 40. Bxf5 {[%clk 0:00:43]} 40...
gxf5 {[%clk 0:00:22.3]} 41. Qxf5 {[%clk 0:00:44.1]} 41... h6 {[%clk 0:00:15.7]}
42. h5 {[%clk 0:00:39.2]} 42... Be5 {[%clk 0:00:13.5]} 43. Qg6+ {[%clk
0:00:37.8]} 43... Kh8 {[%clk 0:00:14.8]} 44. Rf7 {[%clk 0:00:36.3]} 44... Qxf7
{[%clk 0:00:07.3]} 45. Qxf7 {[%clk 0:00:34.2]} 45... Bg7 {[%clk 0:00:06.9]} 46.
Qxb7 {[%clk 0:00:25.9]} 46... c5 {[%clk 0:00:03.2]} 47. Qc8+ {[%clk 0:00:25.4]}
47... Kh7 {[%clk 0:00:04.4]} 48. Qf5+ {[%clk 0:00:27]} 48... Kg8 {[%clk
0:00:05.6]} 49. Qxc5 {[%clk 0:00:28.6]} 49... Kh7 {[%clk 0:00:04.8]} 50. Qf5+
{[%clk 0:00:29.4]} 50... Kh8 {[%clk 0:00:05.8]} 51. Qxa5 {[%clk 0:00:30.4]} 1-0

[Event "*** Titled Tuesday 3|2 Blitz"]
[Site "Chess.com"]
[Date "2017.05.02"]
[Round "2"]
[White "ItalianMachine"]
[Black "brauliocuarta"]
[Result "1/2-1/2"]
[WhiteElo "2199"]
[BlackElo "2103"]
[TimeControl "180+2"]
[EndTime "13:22:16 PDT"]
[Termination "Game drawn - insufficient material"]

1. e4 {[%clk 0:03:02]} 1... c5 {[%clk 0:02:51.9]} 2. Nc3 {[%clk 0:02:59.8]} 2...
e6 {[%clk 0:02:53.2]} 3. f4 {[%clk 0:02:59.7]} 3... a6 {[%clk 0:02:51.7]} 4. Nf3
{[%clk 0:02:55]} 4... d5 {[%clk 0:02:52.6]} 5. d3 {[%clk 0:02:38.1]} 5... Nc6
{[%clk 0:02:34]} 6. g3 {[%clk 0:02:36.3]} 6... d4 {[%clk 0:02:34.2]} 7. Nb1
{[%clk 0:02:33.3]} 7... Nf6 {[%clk 0:02:36.1]} 8. Bg2 {[%clk 0:02:23.1]} 8...
Be7 {[%clk 0:02:07.1]} 9. O-O {[%clk 0:02:23.4]} 9... O-O {[%clk 0:02:08]} 10.
a4 {[%clk 0:02:21.7]} 10... Rb8 {[%clk 0:02:03.2]} 11. h3 {[%clk 0:02:15.5]}
11... b5 {[%clk 0:01:59.5]} 12. axb5 {[%clk 0:02:12.1]} 12... axb5 {[%clk
0:01:57.4]} 13. g4 {[%clk 0:02:12.2]} 13... Qb6 {[%clk 0:01:55.5]} 14. Nbd2
{[%clk 0:01:52.7]} 14... Ba6 {[%clk 0:01:52.2]} 15. b3 {[%clk 0:01:42.8]} 15...
c4 {[%clk 0:01:50.7]} 16. bxc4 {[%clk 0:01:22.6]} 16... bxc4 {[%clk 0:01:51]}
17. e5 {[%clk 0:00:34.3]} 17... Nd5 {[%clk 0:01:47.1]} 18. Nxc4 {[%clk
0:00:34.8]} 18... Bxc4 {[%clk 0:01:45.2]} 19. dxc4 {[%clk 0:00:36.7]} 19... d3+
{[%clk 0:01:20.5]} 20. Kh2 {[%clk 0:00:33.9]} 20... dxc2 {[%clk 0:01:20.4]} 21.
Qxc2 {[%clk 0:00:31.2]} 21... Ne3 {[%clk 0:01:21.2]} 22. Bxe3 {[%clk 0:00:21.1]}
22... Qxe3 {[%clk 0:01:23.1]} 23. Qd2 {[%clk 0:00:10.1]} 23... Qc5 {[%clk
0:01:03.8]} 24. Ng5 {[%clk 0:00:09.3]} 24... Rfd8 {[%clk 0:01:00]} 25. Qf2
{[%clk 0:00:05.3]} 25... Qxf2 {[%clk 0:00:57.5]} 26. Rxf2 {[%clk 0:00:07.2]}
26... Bxg5 {[%clk 0:00:58.3]} 27. fxg5 {[%clk 0:00:09]} 27... Nxe5 {[%clk
0:00:58]} 28. c5 {[%clk 0:00:07.9]} 28... Rbc8 {[%clk 0:00:54.1]} 29. Rc2 {[%clk
0:00:08.8]} 29... Nd3 {[%clk 0:00:49.9]} 30. Ra5 {[%clk 0:00:08.5]} 30... f6
{[%clk 0:00:41.8]} 31. gxf6 {[%clk 0:00:08.6]} 31... gxf6 {[%clk 0:00:43.5]} 32.
c6 {[%clk 0:00:10]} 32... Kf7 {[%clk 0:00:41.9]} 33. c7 {[%clk 0:00:11.3]} 33...
Rd7 {[%clk 0:00:41.6]} 34. Ra7 {[%clk 0:00:12.8]} 34... Nb4 {[%clk 0:00:38.6]}
35. Rc4 {[%clk 0:00:12.9]} 35... Nd5 {[%clk 0:00:39.2]} 36. Bxd5 {[%clk
0:00:13.8]} 36... exd5 {[%clk 0:00:40.2]} 37. Rc5 {[%clk 0:00:15.3]} 37... Ke7
{[%clk 0:00:40.6]} 38. Kg3 {[%clk 0:00:16]} 38... Kd6 {[%clk 0:00:41.4]} 39. Rc3
{[%clk 0:00:17.1]} 39... Rcxc7 {[%clk 0:00:42.3]} 40. Ra6+ {[%clk 0:00:18.3]}
40... Ke7 {[%clk 0:00:42.3]} 41. Re3+ {[%clk 0:00:19.7]} 41... Kf7 {[%clk
0:00:43.3]} 42. Rf3 {[%clk 0:00:20.9]} 42... d4 {[%clk 0:00:42.2]} 43. Rfxf6+
{[%clk 0:00:21.8]} 43... Kg7 {[%clk 0:00:43.2]} 44. Rfd6 {[%clk 0:00:22.9]}
44... d3 {[%clk 0:00:42.6]} 45. Rxd7+ {[%clk 0:00:23.8]} 45... Rxd7 {[%clk
0:00:43.1]} 46. Ra1 {[%clk 0:00:25.7]} 46... Kf6 {[%clk 0:00:40.2]} 47. Rd1
{[%clk 0:00:27.6]} 47... Ke5 {[%clk 0:00:41]} 48. Kf3 {[%clk 0:00:28.7]} 48...
Kd4 {[%clk 0:00:42.3]} 49. h4 {[%clk 0:00:24.9]} 49... Kc3 {[%clk 0:00:43.2]}
50. Rc1+ {[%clk 0:00:22.8]} 50... Kd2 {[%clk 0:00:41.7]} 51. Ra1 {[%clk
0:00:22]} 51... Kc2 {[%clk 0:00:42.2]} 52. g5 {[%clk 0:00:19.8]} 52... d2 {[%clk
0:00:42.7]} 53. h5 {[%clk 0:00:19.4]} 53... d1=Q+ {[%clk 0:00:42.3]} 54. Rxd1
{[%clk 0:00:20.1]} 54... Kxd1 {[%clk 0:00:41.8]} 55. Kf4 {[%clk 0:00:21.5]}
55... Kd2 {[%clk 0:00:42.3]} 56. Kf5 {[%clk 0:00:22.4]} 56... Ke3 {[%clk
0:00:43.2]} 57. g6 {[%clk 0:00:23.4]} 57... hxg6+ {[%clk 0:00:41.9]} 58. hxg6
{[%clk 0:00:24.3]} 58... Rd1 {[%clk 0:00:37.6]} 59. g7 {[%clk 0:00:23.1]} 59...
Rg1 {[%clk 0:00:36.9]} 60. Kf6 {[%clk 0:00:24]} 60... Ke4 {[%clk 0:00:36.5]} 61.
Kf7 {[%clk 0:00:25.1]} 61... Rf1+ {[%clk 0:00:37.2]} 62. Ke7 {[%clk 0:00:25.4]}
62... Rg1 {[%clk 0:00:37.8]} 63. Kf7 {[%clk 0:00:26.6]} 63... Kf5 {[%clk
0:00:36.1]} 64. g8=Q {[%clk 0:00:26.7]} 64... Rxg8 {[%clk 0:00:35.4]} 65. Kxg8
{[%clk 0:00:27.4]} 1/2-1/2

[Event "*** Titled Tuesday 3|2 Blitz"]
[Site "Chess.com"]
[Date "2017.05.02"]
[Round "2"]
[White "Malev212"]
[Black "Cayse"]
[Result "0-1"]
[WhiteElo "2481"]
[BlackElo "2662"]
[TimeControl "180+2"]
[EndTime "13:22:29 PDT"]
[Termination "Cayse won by resignation"]

1. e4 {[%clk 0:02:20.7]} 1... e5 {[%clk 0:02:59.9]} 2. Nf3 {[%clk 0:02:19.6]}
2... Nc6 {[%clk 0:03:00.4]} 3. Bc4 {[%clk 0:02:20.8]} 3... Nf6 {[%clk
0:03:00.7]} 4. d3 {[%clk 0:02:20.1]} 4... Be7 {[%clk 0:03:00.5]} 5. O-O {[%clk
0:02:19.3]} 5... O-O {[%clk 0:03:01]} 6. Re1 {[%clk 0:02:20]} 6... d6 {[%clk
0:03:01.7]} 7. a4 {[%clk 0:02:20.9]} 7... Na5 {[%clk 0:03:02.6]} 8. Ba2 {[%clk
0:02:20.6]} 8... c5 {[%clk 0:03:04.1]} 9. Nbd2 {[%clk 0:02:14.6]} 9... a6 {[%clk
0:03:04.5]} 10. Nf1 {[%clk 0:02:14.8]} 10... b5 {[%clk 0:03:02.5]} 11. Ng3
{[%clk 0:02:12.4]} 11... bxa4 {[%clk 0:02:46.2]} 12. h3 {[%clk 0:02:10.7]} 12...
Rb8 {[%clk 0:02:46.5]} 13. Nd2 {[%clk 0:02:10.6]} 13... Bd7 {[%clk 0:02:42]} 14.
Nc4 {[%clk 0:02:05.7]} 14... h6 {[%clk 0:02:28.5]} 15. Rf1 {[%clk 0:01:56]}
15... Qc7 {[%clk 0:01:47.6]} 16. Ne3 {[%clk 0:01:51.6]} 16... Nc6 {[%clk
0:01:42.7]} 17. Ngf5 {[%clk 0:01:42.4]} 17... Bxf5 {[%clk 0:01:42]} 18. Nxf5
{[%clk 0:01:41.9]} 18... Nd4 {[%clk 0:01:40.3]} 19. Nxe7+ {[%clk 0:01:19.8]}
19... Qxe7 {[%clk 0:01:42.2]} 20. Bc4 {[%clk 0:01:20.1]} 20... Nd7 {[%clk
0:01:32.8]} 21. Rxa4 {[%clk 0:01:17.6]} 21... Nb6 {[%clk 0:01:33]} 22. Rxa6
{[%clk 0:01:14]} 22... Qb7 {[%clk 0:01:33.3]} 23. Rxb6 {[%clk 0:01:03.9]} 23...
Qxb6 {[%clk 0:01:33.7]} 24. f4 {[%clk 0:01:03.9]} 24... exf4 {[%clk 0:01:30.2]}
25. Bxf4 {[%clk 0:01:01.2]} 25... Ne6 {[%clk 0:01:19.2]} 26. Bc1 {[%clk
0:00:56.6]} 26... Ra8 {[%clk 0:00:57.4]} 27. Qg4 {[%clk 0:00:40.5]} 27... Kh8
{[%clk 0:00:52.9]} 28. b3 {[%clk 0:00:38.5]} 28... Qc7 {[%clk 0:00:48.8]} 29.
Qh5 {[%clk 0:00:34.4]} 29... Qe7 {[%clk 0:00:38.3]} 30. Be3 {[%clk 0:00:26]}
30... Ra2 {[%clk 0:00:25.7]} 31. Rf2 {[%clk 0:00:24.6]} 31... Ng5 {[%clk
0:00:23.9]} 32. h4 {[%clk 0:00:23.2]} 32... Ne6 {[%clk 0:00:24.3]} 33. Kh2
{[%clk 0:00:22.8]} 33... Kh7 {[%clk 0:00:24.3]} 34. Qf5+ {[%clk 0:00:20.3]}
34... Kg8 {[%clk 0:00:24.3]} 35. Qg4 {[%clk 0:00:20.5]} 35... Kh8 {[%clk
0:00:21.9]} 36. Qh5 {[%clk 0:00:20.4]} 36... Raa8 {[%clk 0:00:19.5]} 37. Bd5
{[%clk 0:00:20.9]} 37... Ra7 {[%clk 0:00:19.1]} 38. g4 {[%clk 0:00:18.1]} 38...
Kg8 {[%clk 0:00:15.8]} 39. g5 {[%clk 0:00:18.5]} 39... hxg5 {[%clk 0:00:16.7]}
40. hxg5 {[%clk 0:00:18.9]} 40... g6 {[%clk 0:00:15.9]} 41. Qg4 {[%clk
0:00:18.1]} 41... Ra1 {[%clk 0:00:11.7]} 42. Kg2 {[%clk 0:00:18.1]} 42... Kg7
{[%clk 0:00:11.9]} 43. Bd2 {[%clk 0:00:15.8]} 43... Nd4 {[%clk 0:00:12.2]} 44.
Bc3 {[%clk 0:00:16.4]} 44... Rc1 {[%clk 0:00:13.1]} 45. Qf4 {[%clk 0:00:14.6]}
45... Rb1 {[%clk 0:00:11.9]} 46. Qe3 {[%clk 0:00:12.7]} 46... Qe5 {[%clk
0:00:11.4]} 47. Qg3 {[%clk 0:00:08.1]} 47... f6 {[%clk 0:00:07.1]} 48. gxf6+
{[%clk 0:00:05.4]} 48... Rxf6 {[%clk 0:00:08.3]} 49. Qxe5 {[%clk 0:00:06]} 49...
dxe5 {[%clk 0:00:08.6]} 50. Bxd4 {[%clk 0:00:06.4]} 50... cxd4 {[%clk
0:00:08.7]} 51. Re2 {[%clk 0:00:03.4]} 51... Rff1 {[%clk 0:00:08.2]} 0-1

[Event "*** Titled Tuesday 3|2 Blitz"]
[Site "Chess.com"]
[Date "2017.05.02"]
[Round "2"]
[White "Cryptochess"]
[Black "platy3"]
[Result "0-1"]
[WhiteElo "2466"]
[BlackElo "2642"]
[TimeControl "180+2"]
[EndTime "13:23:07 PDT"]
[Termination "platy3 won by resignation"]

1. e4 {[%clk 0:03:02]} 1... c5 {[%clk 0:02:57.6]} 2. Nc3 {[%clk 0:03:03]} 2...
e6 {[%clk 0:02:58.3]} 3. g3 {[%clk 0:03:01.5]} 3... Nc6 {[%clk 0:02:59.3]} 4.
Bg2 {[%clk 0:03:01.9]} 4... Nf6 {[%clk 0:03:00]} 5. d3 {[%clk 0:03:03.1]} 5...
d6 {[%clk 0:02:59.8]} 6. Be3 {[%clk 0:03:04.5]} 6... Be7 {[%clk 0:03:00.8]} 7.
h3 {[%clk 0:03:04.6]} 7... Rb8 {[%clk 0:03:01.2]} 8. Qd2 {[%clk 0:03:05.8]} 8...
b5 {[%clk 0:03:00.5]} 9. Nf3 {[%clk 0:03:05.9]} 9... b4 {[%clk 0:03:01.5]} 10.
Ne2 {[%clk 0:03:06.8]} 10... O-O {[%clk 0:03:02.7]} 11. O-O {[%clk 0:03:07.9]}
11... d5 {[%clk 0:03:03.6]} 12. exd5 {[%clk 0:03:08.9]} 12... exd5 {[%clk
0:02:56.7]} 13. c3 {[%clk 0:02:55.4]} 13... a5 {[%clk 0:02:52.8]} 14. Rfe1
{[%clk 0:02:55.3]} 14... Ba6 {[%clk 0:02:49.7]} 15. d4 {[%clk 0:02:38.7]} 15...
bxc3 {[%clk 0:02:39.8]} 16. bxc3 {[%clk 0:02:37]} 16... cxd4 {[%clk 0:02:22.7]}
17. Nexd4 {[%clk 0:02:24.5]} 17... Qd7 {[%clk 0:02:12.2]} 18. Bf4 {[%clk
0:02:20.4]} 18... Nxd4 {[%clk 0:02:05.3]} 19. Nxd4 {[%clk 0:02:12.6]} 19... Bd6
{[%clk 0:02:03.1]} 20. Bxd6 {[%clk 0:02:10.4]} 20... Qxd6 {[%clk 0:02:03.9]} 21.
Nf5 {[%clk 0:02:11.8]} 21... Qd8 {[%clk 0:01:41.1]} 22. Qg5 {[%clk 0:00:51.4]}
22... Ne8 {[%clk 0:01:41.4]} 23. Re7 {[%clk 0:00:52.6]} 23... Rb6 {[%clk
0:01:04.5]} 24. Rae1 {[%clk 0:00:41.3]} 24... Rg6 {[%clk 0:01:05.4]} 25. Qf4
{[%clk 0:00:35.2]} 25... Nd6 {[%clk 0:01:04.9]} 26. Bxd5 {[%clk 0:00:31.5]}
26... Rf6 {[%clk 0:00:58.5]} 27. Be4 {[%clk 0:00:10.4]} 27... Bc8 {[%clk
0:00:35.9]} 28. g4 {[%clk 0:00:11.6]} 28... Bxf5 {[%clk 0:00:26.4]} 29. Bxf5
{[%clk 0:00:13.5]} 29... Nxf5 {[%clk 0:00:22.4]} 30. gxf5 {[%clk 0:00:15.4]}
30... Qd3 {[%clk 0:00:21]} 31. Qe4 {[%clk 0:00:14.3]} 31... Qxe4 {[%clk
0:00:16.6]} 32. R1xe4 {[%clk 0:00:16.2]} 32... Rxf5 {[%clk 0:00:17.8]} 33. Re8
{[%clk 0:00:17.2]} 33... Rc5 {[%clk 0:00:17.6]} 34. Rxf8+ {[%clk 0:00:17]} 34...
Kxf8 {[%clk 0:00:19.5]} 35. Re3 {[%clk 0:00:18.7]} 35... a4 {[%clk 0:00:14]} 36.
Kf1 {[%clk 0:00:18.9]} 36... a3 {[%clk 0:00:09.5]} 37. c4 {[%clk 0:00:19]} 37...
Rxc4 {[%clk 0:00:10]} 38. Rxa3 {[%clk 0:00:20.6]} 38... Rc2 {[%clk 0:00:10.9]}
39. Ra7 {[%clk 0:00:20.9]} 39... g6 {[%clk 0:00:11.5]} 40. Kg2 {[%clk
0:00:22.7]} 40... Kg7 {[%clk 0:00:12.5]} 41. Kg3 {[%clk 0:00:24.6]} 41... h5
{[%clk 0:00:13.7]} 42. a4 {[%clk 0:00:26.2]} 42... Ra2 {[%clk 0:00:14.6]} 43. a5
{[%clk 0:00:27.3]} 43... Ra3+ {[%clk 0:00:16.1]} 44. Kg2 {[%clk 0:00:28.1]}
44... g5 {[%clk 0:00:17.3]} 45. Ra6 {[%clk 0:00:29.2]} 45... f6 {[%clk
0:00:18.1]} 46. Ra8 {[%clk 0:00:30.5]} 46... Kg6 {[%clk 0:00:19.4]} 47. Ra6
{[%clk 0:00:31.5]} 47... Kf5 {[%clk 0:00:16.7]} 48. Ra8 {[%clk 0:00:32.4]} 48...
Kf4 {[%clk 0:00:14.8]} 49. Ra6 {[%clk 0:00:33]} 49... f5 {[%clk 0:00:15.5]} 50.
Ra8 {[%clk 0:00:32.5]} 50... Ra2 {[%clk 0:00:13.3]} 51. a6 {[%clk 0:00:17.3]}
51... g4 {[%clk 0:00:12.1]} 52. hxg4 {[%clk 0:00:18.6]} 52... hxg4 {[%clk
0:00:13.9]} 53. a7 {[%clk 0:00:20.2]} 53... Ra3 {[%clk 0:00:08.9]} 54. Rb8
{[%clk 0:00:10.9]} 54... Rxa7 {[%clk 0:00:09.2]} 55. Rb4+ {[%clk 0:00:12.6]}
55... Kg5 {[%clk 0:00:10.8]} 56. Kg1 {[%clk 0:00:14.2]} 56... f4 {[%clk
0:00:10.5]} 57. Kg2 {[%clk 0:00:15.5]} 57... Ra2 {[%clk 0:00:07.5]} 58. Rc4
{[%clk 0:00:16.6]} 58... g3 {[%clk 0:00:07.7]} 59. Kh3 {[%clk 0:00:15.3]} 59...
Rxf2 {[%clk 0:00:06.7]} 60. Rc5+ {[%clk 0:00:17.2]} 60... Kf6 {[%clk 0:00:08.1]}
61. Rc1 {[%clk 0:00:15.6]} 61... g2 {[%clk 0:00:07.4]} 62. Kh2 {[%clk
0:00:13.9]} 62... f3 {[%clk 0:00:05.9]} 63. Rc4 {[%clk 0:00:14.7]} 63... Rf1
{[%clk 0:00:06.4]} 64. Rg4 {[%clk 0:00:15.8]} 64... Kf5 {[%clk 0:00:07.7]} 65.
Rg8 {[%clk 0:00:15.9]} 65... Rh1+ {[%clk 0:00:08.7]} 0-1